Cogmind - Beta 15 @@@ ROGUE MODE // 2025.06.27 @ 02:04:21 Player: CheifClapdad Result: Destroyed by G-34 Mercenary with Small Laser Performance ------------- Evolutions (1) 500 Regions Visited (2) 400 Robots Destroyed (17) 85 Value Destroyed (467) 467 Prototype IDs (0) 0 Alien Tech Used (0) 0 Bonus (0) 0 TOTAL SCORE: 1452 Bonus ------- None Cogmind --------- Core Integrity 0/400 Matter 278/300 Energy 136/160 System Corruption 4% Temperature Cool (4) Movement Treading (160) Location -9/Materials Parts ------- > --- POWER (1) -------- Light Nuclear Core > --- PROPULSION (3) --- Light Treads Light Treads Light Treads > --- UTILITY (3) ------ Heat Sink (fused) Small Storage Unit Shield Generator > --- WEAPON (2) ------- Heavy Assault Rifle > --- INVENTORY (8) ---- Light Treads Advanced Treads Large Matter Pod (21) Improved Targeting Computer Core Shielding Light Armor Plating Shield Generator Peak State ------------ > --- POWER ------------ Light Nuclear Core > --- PROPULSION ------- Advanced Treads Advanced Treads Advanced Treads > --- UTILITY ---------- Heat Sink Small Storage Unit System Shield > --- WEAPON ----------- Light Assault Rifle Heavy Assault Rifle > --- INVENTORY -------- Light Nuclear Core Light Nuclear Core Light Treads Light Treads Advanced Treads Light Armor Plating System Shield Light Assault Rifle [Rating: 21] Favorites ----------- Power Light Nuclear Core Power Core Light Nuclear Core Propulsion Advanced Treads Treads Advanced Treads Wheel Wheel Utility Small Storage Unit Device Heat Sink Storage Small Storage Unit Hackware System Shield Protection Light Armor Plating Weapon Light Assault Rifle Energy Gun Small Laser Ballistic Gun Light Assault Rifle Build | -11 -10 -9 ------- Run | Yrd Mat Mat Slots Evolved 2 | . . 2 Power . | . . . Propulsion 1 | . . 1 Utility 1 | . . 1 Weapon . | . . . Parts Attached 24 | 5 1 18 Power 2 | . . 2 Engine . | . . . Core 2 | . . 2 Reactor . | . . . Propulsion 9 | 2 . 7 Treads 8 | 1 . 7 Leg . | . . . Wheel 1 | 1 . . Hover . | . . . Flight . | . . . Utility 6 | 1 1 4 Device 3 | . 1 2 Storage 1 | 1 . . Processor . | . . . Hackware 1 | . . 1 Protection 1 | . . 1 Artifact . | . . . Weapon 7 | 2 . 5 Energy Gun 1 | 1 . . Energy Cannon . | . . . Ballistic Gun 6 | 1 . 5 Ballistic Cannon . | . . . Launcher . | . . . Special Weapon . | . . . Impact Weapon . | . . . Slashing Weapon . | . . . Piercing Weapon . | . . . Special Melee Weapon . | . . . Unidentified Prototypes . | . . . Parts Lost 9 | . . 9 Power 1 | . . 1 Propulsion 3 | . . 3 Utility 1 | . . 1 Weapon 4 | . . 4 Highest Loss Streak 6 | . . 6 To Critical Strikes . | . . . Average Backups 6 | 1 4 6 Power 1 | . 2 1 Propulsion 2 | 1 2 2 Utility 1 | . . 2 Weapon . | . . . Tool/Special . | . . . Unused Backups 11 | . . 11 Power 3 | . . 3 Propulsion 2 | . . 2 Utility 6 | . . 6 Weapon . | . . . Tool/Special . | . . . Average Slot Usage (%) 91 | . 76 93 Core 8 | . . 10 Treads 28 | . 14 31 Wheel 2 | . 14 . Device 13 | . 5 15 Storage 11 | . 14 11 Hackware 3 | . . 3 Protection 1 | . . 1 Energy Gun 4 | . 14 2 Ballistic Gun 17 | . 14 17 Peak Build Rating 21 | 5 6 21 Average Rating 14 | 3 5 16 On Entrance 3 | . 5 6 Naked Turns . | . . . Heaviest Build 18 | 7 8 18 Greatest Support 66 | 20 10 66 Greatest Overweight (x) 2 | 2 . . Average Overweight (x) . | . . . Largest Inventory Capacity 8 | 8 8 8 Average Capacity 7 | 7 8 8 Most Carried 8 | 4 4 8 Average Carried 6 | 1 4 6 Final Capacity 8 | 8 8 8 Final Carried 7 | 4 4 7 Class Distribution -------------------- 100% | Mutant Dominant Class ---------------- Mutant | -10/Materials Mutant | -9/Materials Resources | -11 -10 -9 ----------- Run | Yrd Mat Mat Matter Collected 650 | 235 25 390 Remotely . | . . . Salvage Created 549 | . 41 508 Parts 46 | . 4 42 Haulers Intercepted . | . . . Recyclers Shooed . | . . . Parts Field Recycled . | . . . Retrieved Matter . | . . . Parts Self-Destructed . | . . . Prevented . | . . . Kills | -11 -10 -9 ------- Run | Yrd Mat Mat Combat Hostiles Destroyed 17 | . 3 14 Guns 17 | . 3 14 Classes Destroyed 4 | . 1 3 Swarmer 7 | . 3 4 Grunt 5 | . . 5 Duelist 1 | . . 1 Sentry 4 | . . 4 Best Kill Streak 4 | . 3 4 Combat Bots Only 4 | . 3 4 Max Kills in Single Turn 2 | . 1 2 Gunslinging 1 | . . 1 Exploded . | . . . Melee . | . . . Uniques/NPCs Destroyed . | . . . Combat | -11 -10 -9 -------- Run | Yrd Mat Mat Hostile Shots Fired 181 | . 9 172 Missed 44 | . 2 42 Hits 137 | . 7 130 Melee 14 | . . 14 Projectile 123 | . 7 116 Critical Strikes 3 | . . 3 Damage Taken 1737 | . 56 1681 Core 415 | . 13 402 Absorbed by Shields 153 | . . 153 Core Remaining (%) 97 | 100 94 . Volleys Fired 98 | . 10 88 Largest 2 | . 2 2 Hottest 60 | . 60 60 Shots Fired 158 | . 20 138 Gun 158 | . 20 138 Cannon . | . . . Launcher . | . . . Special . | . . . Kinetic 142 | . 10 132 Thermal 16 | . 10 6 Explosive . | . . . Electromagnetic . | . . . Robot Hit Streak 24 | . 4 24 Robot Miss Streak 3 | . 3 2 Penetration Max . | . . . Secondary Targets 2 | . 1 1 Max Gunslinging Chain 1 | . 1 1 Shots Hit Robots 118 | . 10 108 Core Hits 38 | . 5 33 Critical Kills . | . . . Critical Parts Destroyed 1 | . . 1 Critical Strikes 1 | . . 1 Destroy 1 | . . 1 Melee Attacks . | . . . Impact . | . . . Slashing . | . . . Piercing . | . . . Sneak Attacks . | . . . Combat Hostiles . | . . . Follow-up Attacks . | . . . Damage Inflicted 1138 | . 105 1033 Guns 1138 | . 105 1033 Cannons . | . . . Explosions . | . . . Melee . | . . . Ramming . | . . . Kinetic 1029 | . 40 989 Thermal 109 | . 65 44 Explosive . | . . . Electromagnetic . | . . . Impact . | . . . Slashing . | . . . Piercing . | . . . Highest Corruption 4 | . . 4 Average Corruption 3 | . . 3 Corruption Purged . | . . . Corruption Blocked . | . . . Effects 9 | . . 9 Message Errors 2 | . . 2 Matter Fused 3 | . . 3 Heat Flow Errors 1 | . . 1 Energy Discharges 2 | . . 2 Parts Fused 1 | . . 1 Overload Shots . | . . . Overflow Damage . | . . . Projectiles . | . . . Explosions . | . . . Melee . | . . . Knockbacks . | . . . Impact . | . . . Kinetic . | . . . Secondary . | . . . Self-Inflicted Damage . | . . . Shots . | . . . Rammed . | . . . Targets Rammed . | . . . Kicked . | . . . Crushed . | . . . Highest Temperature 195 | . 20 195 Average Temperature 22 | . 9 32 Received Heat Transfer 452 | . . 452 Siege Activations . | . . . Martial Activations . | . . . Shielding Activations . | . . . Robots Disrupted . | . . . Combat Hostiles . | . . . Robots Corrupted . | . . . Combat Hostiles . | . . . Parts Fried . | . . . Impact Corruptions . | . . . Robots Melted . | . . . Combat Hostiles . | . . . Parts Melted . | . . . Heat Transferred 250 | . 150 100 Parts Sabotaged . | . . . Parts Stolen . | . . . Parts Stripped . | . . . Power Chain Reactions . | . . . Alert | -11 -10 -9 ------- Run | Yrd Mat Mat Maximum Alert Level . | . . . Low Security (%) 100 | 100 100 100 Level 1 . | . . . Level 2 . | . . . Level 3 . | . . . Level 4 . | . . . Level 5 . | . . . High Security . | . . . Max Security . | . . . Peak Influence 110 | . 60 110 Initial . | . . . Average 26 | . 19 29 Influence Increases 482 | . 70 412 Destroy 0b10 Robot/C 340 | . 60 280 Destroy Leader 90 | . 10 80 Successful Hack 7 | . . 7 Lose Combat Pursuer 45 | . . 45 Influence Decreases 475 | . 70 405 Time Decay 385 | . 70 315 Lost Part 90 | . . 90 Squads Dispatched 3 | . . 3 Investigation 1 | . . 1 Extermination . | . . . Reinforcement 2 | . . 2 Assault . | . . . Garrison . | . . . Intercept . | . . . Searches Triggered . | . . . Construction Impeded . | . . . Haulers Reinforced . | . . . Active Scanning Responses . | . . . Cargo Convoy Interrupts . | . . . Stealth | -11 -10 -9 --------- Run | Yrd Mat Mat Distress Signals 4 | . 2 2 Communications Jammed . | . . . Distress Signals . | . . . Times Spotted 30 | . 6 24 Peak Tracking Total 5 | . 5 5 Tactical Retreats 3 | . . 3 Traps | -11 -10 -9 ------- Run | Yrd Mat Mat Traps Triggered 3 | . . 3 Indirectly . | . . . Trap Hack Attempts . | . . . Triggered . | . . . Disarmed . | . . . Reprogrammed . | . . . Reused . | . . . Traps Extracted . | . . . Installed . | . . . Triggered . | . . . Machines | -11 -10 -9 ---------- Run | Yrd Mat Mat Machines Disabled . | . . . Max in Single Turn . | . . . Machines Repaired . | . . . Machines Dismantled . | . . . Machines Sabotaged . | . . . Overloaded Fab Kills . | . . . Hacking | -11 -10 -9 --------- Run | Yrd Mat Mat Machines Accessed 1 | . . 1 Terminals 1 | . . 1 Fabricators . | . . . Repair Stations . | . . . Recycling Units . | . . . Scanalyzers . | . . . Garrison Access . | . . . Total Hacks 2 | . . 2 Successful 1 | . . 1 Failed 1 | . . 1 Catastrophic . | . . . Database Lockouts . | . . . Manual . | . . . Terminals 2 | . . 2 Fabricators . | . . . Repair Stations . | . . . Recycling Units . | . . . Scanalyzers . | . . . Garrison Access . | . . . Terminal Hacks 1 | . . 1 Branch Access Points 1 | . . 1 Fabricator Hacks . | . . . Repair Station Hacks . | . . . Recycling Unit Hacks . | . . . Scanalyzer . | . . . Garrison Access Hacks . | . . . Unauthorized Hacks . | . . . Terminals . | . . . Fabricators . | . . . Repair Stations . | . . . Recycling Units . | . . . Scanalyzers . | . . . Garrison Access . | . . . Data Cores Recovered . | . . . Used . | . . . Hacking Detections 1 | . . 1 Full Trace Events . | . . . Feedback Events . | . . . Feedback Blocked . | . . . Robot Schematics Acquired . | . . . Robots Built . | . . . Authchips . | . . . Time . | . . . Total Robot Build Rating . | . . . Part Schematics Acquired . | . . . Parts Built . | . . . Authchips . | . . . Time . | . . . Total Part Build Rating . | . . . Parts Repaired . | . . . Time . | . . . Parts Recycled . | . . . Recycled Matter . | . . . Retrieved Matter . | . . . Retrieved Components . | . . . Parts Scanalyzed . | . . . Part Schematics Acquired . | . . . Parts Damaged . | . . . Bothacking | -11 -10 -9 ------------ Run | Yrd Mat Mat Used RIF Installer . | . . . Robots Hacked . | . . . Non-combat . | . . . Combat . | . . . Robot Hacks Applied . | . . . Relay Couplers Released . | . . . Fabnet Peak Effective % . | . . . Robots Rewired . | . . . Allies Hacked . | . . . Hacks Repelled . | . . . Allies | -11 -10 -9 -------- Run | Yrd Mat Mat Total Allies . | . . . Largest Group . | . . . Highest-Rated Group . | . . . Highest-Rated Ally . | . . . Total Orders . | . . . Ally Attacks . | . . . Total Damage . | . . . Kills . | . . . Allies Corrupted . | . . . Allies Melted . | . . . Intel | -11 -10 -9 ------- Run | Yrd Mat Mat Active Infowar (turns) . | . . . Robot Analysis Total . | . . . Derelict Logs Recovered . | . . . Drone Launches . | . . . Drone Recoveries . | . . . Exploration | -11 -10 -9 ------------- Run | Yrd Mat Mat Turns Passed 1312 | 65 190 1057 Spaces Moved 768 | 67 201 500 Core 22 | 22 . . Treads 484 | 2 . 482 Legs . | . . . Wheels 262 | 43 201 18 Hover . | . . . Flight . | . . . Fastest Speed 50 | 50 80 80 Average Speed 123 | 80 80 146 Slowest Speed 160 | 160 80 160 Overloaded Moves . | . . . Propulsion Burnouts . | . . . Robots Hopped . | . . . Potential Cave-ins . | . . . Cave-ins Triggered . | . . . Exploration Rate (%) 20 | 4 28 29 Regions Visited 2 Branch Regions . Pre-discovered Areas . | . . . Known Exits Taken . | . . . Unknown Exits Taken 2 | 1 1 . Scrap Searched . | . . . Spaces Dug . | . . . Terrain Destroyed . | . . . Melee . | . . . Projectile . | . . . AOE . | . . . Terrain Rammed . | . . . Walls Destroyed . | . . . Machines Disabled . | . . . Actions | -11 -10 -9 --------- Run | Yrd Mat Mat Total 993 | 75 211 707 Wait 71 | . . 71 Move 766 | 66 200 500 Hop . | . . . Pick Up 21 | 4 . 17 Fast Attach 14 | 5 1 8 Attach 9 | . . 9 Detach . | . . . Swap 4 | . . 4 Drop 10 | . . 10 Fire 98 | . 10 88 Melee . | . . . Ram . | . . . Kick . | . . . Crush . | . . . Escape Stasis . | . . . Rewire . | . . . Trap . | . . . Miscellaneous . | . . . Route ------- -11/Scrapyard -10/Materials -9/Materials (discovered 2 exits: Min x2) History --------- Turn | Location | Event 29 | -11/Scrapyard | Discovered new exit (range 16) 66 | -11/Scrapyard | Entered Materials 187 | -10/Materials | Discovered new exit (range 12) 256 | -10/Materials | Entered another Materials area 256 | -9/Materials | Evolved 2 slots: Propulsion x1, Utility x1 323 | -9/Materials | Build established: Mutant 355 | -9/Materials | Identified exit to Mines 957 | -9/Materials | Core integrity fell below 50% 977 | -9/Materials | Core integrity fell below 20% 1005 | -9/Materials | Lost 6 parts (1p3n2w) 1313 | -9/Materials | Destroyed by G-34 Mercenary with Small Laser Last Messages --------------- 01150_ Acquired Lrg. Matter Pod. 01153_ U-05 Engineer works on Material Compactor. 01156_ Acquired Imp. Targeting Computer. 01157_ K-01 Serf collects debris. 01158_ U-05 Engineer works on Material Compactor. 01179_ Triggered Alarm Trap. 01179_ An alarm sounds. 01179_ ALERT: Alarm triggered, dispatching investigation squad. 01184_ PPW#L<1YG> 2RZJTJJVD AWOX 01187_ U-05 Engineer lays Concrete. 01206_ System corrupted: Matter fused (-7). 01236_ G-34 Mercenary destroyed. 01238_ System corrupted: Energy discharge (-44). 01244_ Acquired 36 matter. 01276_ System corrupted: Matter fused (-5). 01306_ ??????????? | | ??????????# #?#" #?????? ???????? | | ?????######/###" #????? #??????? | | ?????# #T #??? #???????? | | ?????# """#" ### #????????? | | ?????# """#" #????????? | | ?????# """#" +????????? | | ?????# + #????????? | | ?????# """# #????????? | | ?????# """# ####+### #????????? | | ?????# """# #??????????????????? | | ?????# # #??????????????????? | | ?????########## #??????????????????? | | ??????????????# #??????????????????? | | ??????????????# #??????????????????? | | ??????????????# #??????????????????? | | ??????????????# #??????????????????? | +----------------------------------------------------+ Best States ------------- Heat Dissipation 38 Energy Generation 14 Energy Capacity 160 Matter Stores 300 Matter Capacity 300 Sight Range 16 Terrain Scan Density 10 Armor Coverage 150 Evasion (%) 50 Recoil Reduction 3 Defensive Hacking 10 Item Schematics ----------------- None Robot Schematics ------------------ None Fabricated ------------ Nothing Repaired ---------- Nothing Alien Tech Used ----------------- None Achievements -------------- None Challenges ------------ None Game ------ Seed SmartProcessingAutogun Manual? 0 Play Time 00:09:16 Cumulative 94.4 hours Start 2025.06.27 @ 01:54:36 End 2025.06.27 @ 02:04:21 Sessions 1 Manual Loads 0 Difficulty Rogue Special Mode None Game No. 128 Rogue 128 Adventurer 0 Explorer 0 Win Type - Total 1 Types 1/0/0/0/0/0/0/0/0/0 Lore% 38 Gallery% 50 Achievement% 43 Wizard Run 0 Options --------- Layout 1 ASCII 0 Keyboard 0 Movement Arrows Keybinds 0 Fullscreen 1 Font 24/Smallcaps Map View 50x35 Zoom Use 0% Tactical HUD 1 Map Filters NONE Filters NONE Steam X RUN: 6a97b358-4289-4d86-b7c2-932c128f20d6